bitfinex/quotes_ETHUSD_20250323
["timestamp","ask_amount","ask_price","bid_price","bid_amount"]
[1742743022227,4.97908,2008.4,2008.3,31.049]
[1742743027138,4.97908,2008.4,2008.3,31.043]
[1742743028239,4.97908,2008.4,2008.3,26.319]
[1742743028427,4.97908,2008.4,2008.3,31.041]
[1742743034752,4.97908,2008.4,2008.3,34.32299218]
[1742743034915,4.9789,2008.5,2008.4,0.7677]
[1742743037414,4.97908,2008.4,2008.3,33.55529218]
[1742743039164,4.97908,2008.4,2008.3,31.041]
[1742743039368,4.97908,2008.4,2008.3,26.319]
[1742743039543,4.97908,2008.4,2008.3,31.041]
[1742743042854,4.97908,2008.4,2008.3,31.04]
[1742743043881,4.97908,2008.4,2008.3,31.039]
[1742743044242,4.84115513,2008.4,2008.3,31.039]
[1742743044774,5.63585513,2008.4,2008.3,31.039]
[1742743048053,4.84115513,2008.4,2008.3,31.039]
[1742743052271,7.97768,2009.0,2008.3,33.21930714]
[1742743052476,4.97828,2008.8,2008.6,3.27289218]
[1742743052813,4.97809,2008.8,2008.7,4.722]
[1742743053014,4.97809,2008.8,2008.7,6.23149917]
[1742743054019,4.97809,2008.8,2008.7,4.722]
[1742743055126,4.97883,2008.5,2008.4,3.27522792]
[1742743055310,4.97883,2008.5,2008.4,8.00422792]
[1742743059432,4.97883,2008.5,2008.4,7.24562792]
[1742743062260,4.97908,2008.4,2008.3,26.319]
[1742743062561,4.97908,2008.4,2008.3,31.2227939]
[1742743062763,4.97908,2008.4,2008.3,31.037]
[1742743063128,4.97908,2008.4,2008.3,26.319]
[1742743063445,4.97908,2008.4,2008.3,31.039]
[1742743064922,5.73488,2008.4,2008.3,31.039]
[1742743065118,5.73488,2008.4,2008.3,31.037]
[1742743066368,5.73488,2008.4,2008.3,31.036]
[1742743066546,7.304119,2008.4,2008.3,31.036]
[1742743066747,10.304119,2008.4,2008.3,31.036]
[1742743069967,4.97908,2008.4,2008.3,33.55262792]
[1742743072078,4.97908,2008.4,2008.3,34.36902792]
[1742743072573,5.45120283,2009.1,2008.3,34.36902792]
[1742743072574,0.8246,2009.4,2008.5,0.8164]
[1742743072773,4.97735,2009.1,2009.0,2.51662792]
[1742743073072,4.97735,2009.1,2009.0,33.56062792]
[1742743076726,0.36952274,2010.0,2009.1,0.8164]
[1742743076930,0.36952274,2010.0,2009.9,3.33302792]
[1742743077162,0.01,2010.4,2009.9,37.15362792]
[1742743077342,0.01,2010.4,2010.3,3.33302792]
[1742743077555,0.01,2010.4,2010.3,8.10602792]
[1742743080164,0.01,2010.4,2010.3,3.33302792]
[1742743080534,0.01,2010.4,2010.3,8.10002792]
[1742743080735,0.01,2010.4,2010.3,3.33302792]
[1742743081069,4.98413,2010.4,2010.3,8.09902792]
[1742743081261,0.01,2010.4,2010.3,8.09902792]
[1742743081756,0.01,2010.4,2010.3,8.90893071]
[1742743082567,4.98413,2010.4,2010.3,8.90893071]
[1742743086677,4.98413,2010.4,2010.3,0.80990279]
[1742743086853,4.98413,2010.4,2010.3,7.27062792]
[1742743087054,4.98413,2010.4,2010.3,2.51662792]
[1742743087268,0.01,2010.4,2010.3,10.33625584]
[1742743087577,0.01,2010.4,2010.3,16.06983584]
[1742743089378,0.01,2010.4,2010.3,19.06983584]
[1742743091787,4.97214,2011.3,2011.0,0.7592]
[1742743091991,4.97175,2011.4,2011.2,2.51662792]
[1742743092144,4.97175,2011.4,2011.3,0.06135584]
[1742743098609,4.9719,2011.3,2011.2,2.51662792]
[1742743100103,4.9719,2011.3,2011.2,7.28562792]
[1742743100491,4.9719,2011.3,2011.2,9.80225584]
[1742743100688,9.94361,2011.4,2011.2,9.8519719]
[1742743100904,4.9776296,2011.7,2011.3,0.7805]
[1742743101081,4.9776296,2011.7,2011.6,2.51662792]
[1742743101408,4.9776296,2011.7,2011.6,7.6283115]
[1742743101700,0.0065596,2011.7,2011.6,7.6283115]
[1742743101908,0.0065596,2011.7,2011.6,8.1783115]
[1742743102981,0.0065596,2011.7,2011.6,8.54784024]
[1742743103178,4.96985,2012.2,2011.8,0.7805]
[1742743103382,4.96985,2012.2,2012.0,5.03325584]
[1742743103383,4.97003,2012.1,2012.0,5.03325584]
[1742743103701,4.97003,2012.1,2012.0,9.82225584]
[1742743103901,4.97003,2012.1,2012.0,7.30562792]
[1742743105107,4.97003,2012.1,2011.9,26.288]
[1742743105304,4.97003,2012.1,2012.0,4.786]
[1742743107175,9.93904,2012.3,2012.1,0.7805]
[1742743107375,9.93917,2012.3,2012.2,2.51662792]
[1742743108099,4.96949,2012.3,2012.2,2.51662792]
[1742743109036,4.96949,2012.3,2012.2,7.32562792]
[1742743109213,6.541282,2012.3,2012.2,7.32562792]
[1742743110714,4.96949,2012.3,2012.2,7.32562792]
[1742743111114,4.96949,2012.3,2012.2,2.51662792]
[1742743111301,4.96949,2012.3,2012.2,7.32462792]
[1742743113428,4.96949,2012.3,2012.2,7.32662792]
[1742743115024,4.97017,2012.0,2011.9,26.288]
[1742743115232,4.97017,2012.0,2011.9,33.61162792]
[1742743115926,4.97017,2012.0,2011.9,26.288]
[1742743116126,4.96961,2012.3,2012.0,0.7991]
[1742743116335,4.96872,2012.6,2012.2,2.51662792]
[1742743116633,4.96919,2012.4,2012.3,4.829]
[1742743119090,4.96919,2012.4,2012.3,5.6281]
[1742743119532,4.96894,2012.5,2012.3,5.6281]
[1742743119733,4.96894,2012.5,2012.4,2.51662792]
[1742743124805,5.7746,2012.6,2012.1,28.05816822]
[1742743125112,4.96943,2012.3,2012.2,4.816]
[1742743125516,4.96927,2012.4,2012.2,4.816]
[1742743125730,9.93715,2012.7,2012.3,2.51662792]
[1742743125941,9.93816,2012.5,2012.4,26.271]
[1742743126243,4.96903,2012.5,2012.4,26.271]
[1742743127650,4.96846,2012.7,2012.5,0.8108]
[1742743127956,9.93706,2012.7,2012.6,4.82]
[1742743128503,4.96846,2012.7,2012.6,4.82]
[1742743134311,4.9682,2012.8,2012.6,4.82]
[1742743135374,9.93661,2012.8,2012.6,4.82]
[1742743136038,4.96845,2012.7,2012.6,4.82]
[1742743136381,4.96845,2012.7,2012.5,2.51662792]
[1742743136541,4.96869,2012.6,2012.5,3.06662792]
[1742743136741,4.96869,2012.6,2012.5,7.87462792]
[1742743136989,0.02,2013.3,2012.6,4.3608]
[1742743137285,0.02,2013.3,2013.2,2.51662792]
[1742743137451,0.02,2013.3,2013.2,33.61662792]
[1742743137652,4.94648,2013.5,2013.2,33.61662792]
[1742743137854,4.94648,2013.5,2013.4,2.51662792]
[1742743138038,4.96627,2013.6,2013.4,2.51662792]
[1742743138241,4.96636,2013.6,2013.4,2.51662792]
[1742743138438,0.1195013,2013.7,2013.5,4.859]
[1742743138673,5.0856513,2013.7,2013.5,4.859]
[1742743139111,0.1195013,2013.7,2013.6,2.51662792]
[1742743139279,0.1195013,2013.7,2013.6,3.32742792]
[1742743140047,0.1195013,2013.7,2013.6,2.51662792]
[1742743140247,5.0854813,2013.7,2013.6,2.51662792]
[1742743140462,5.0854813,2013.7,2013.6,7.37262792]
[1742743140643,5.0854813,2013.7,2013.6,8.01940042]
[1742743141066,0.1195013,2013.7,2013.6,8.01940042]
[1742743141650,0.1195013,2013.7,2013.6,4.52420042]
[1742743141875,0.1195013,2013.7,2013.6,9.38920042]
[1742743143116,0.1195013,2013.7,2013.6,4.52420042]
[1742743143407,0.1195013,2013.7,2013.6,9.38720042]
[1742743144813,0.1195013,2013.7,2013.6,9.38420042]
[1742743145666,0.1195013,2013.7,2013.6,4.52420042]
[1742743145872,0.1195013,2013.7,2013.6,9.38120042]
[1742743146170,0.1195013,2013.7,2013.6,14.34742042]
[1742743146919,4.96447,2014.4,2013.8,5.51564]
[1742743146920,4.96467,2014.3,2013.8,5.51564]
[1742743147083,4.96467,2014.3,2014.2,2.51662792]
[1742743147084,4.9645,2014.3,2014.2,2.51662792]
[1742743147276,4.9645,2014.3,2014.2,33.63062792]
[1742743148026,4.96437,2014.4,2014.2,33.63062792]
[1742743148183,4.96437,2014.4,2014.3,0.6467725]
[1742743149518,4.96437,2014.4,2014.3,5.4987725]
[1742743150214,4.96437,2014.4,2014.3,5.4967725]
[1742743150582,4.96437,2014.4,2014.3,5.4957725]
[1742743152627,5.7248,2014.3,2014.2,26.257]
[1742743152814,5.7248,2014.3,2014.2,31.102]
[1742743154326,5.7248,2014.3,2014.2,26.257]
[1742743154526,5.7248,2014.3,2014.2,31.1]
[1742743155045,0.7603,2014.2,2013.5,0.37469616]
[1742743155201,4.96622,2013.6,2013.5,31.101]
[1742743155595,4.96606,2013.7,2013.5,33.61762792]
[1742743156226,4.96579,2013.8,2013.6,0.55]
[1742743156395,4.96579,2013.8,2013.7,2.51662792]
[1742743157130,4.96598,2013.7,2013.6,0.55]
[1742743157632,4.96598,2013.7,2013.6,5.421]
[1742743158003,4.96598,2013.7,2013.6,0.55]
[1742743158334,4.96622,2013.6,2013.5,26.249]
[1742743158489,4.96622,2013.6,2013.5,31.119]
[1742743159204,4.96622,2013.6,2013.5,31.118]
[1742743160938,4.96622,2013.6,2013.5,26.249]
[1742743161141,10.358234,2013.6,2013.5,31.113]
[1742743161319,4.9677,2013.0,2012.9,2.51662792]
[1742743161494,4.9677,2013.0,2012.9,28.76662792]
[1742743162228,4.9677,2013.0,2012.9,26.25]
[1742743162395,4.9677,2013.0,2012.9,31.114]
[1742743163225,4.96754,2013.1,2012.9,31.114]
[1742743163429,4.96754,2013.1,2012.9,26.25]
[1742743163634,0.8202,2013.5,2013.0,4.894]
[1742743163931,4.967,2013.3,2013.0,7.41062792]
[1742743164230,4.96684,2013.4,2013.0,7.41062792]
[1742743164429,4.96706,2013.3,2013.0,7.41062792]
[1742743164731,4.96742,2013.2,2013.0,7.41062792]
[1742743165436,4.96742,2013.2,2013.0,4.894]
[1742743165437,4.96746,2013.1,2013.0,4.894]
[1742743171349,4.9677,2013.0,2012.9,26.25]
[1742743171526,4.9677,2013.0,2012.9,31.128]
[1742743171851,5.7963,2013.0,2012.9,31.129]
[1742743172055,7.62108079,2013.0,2012.9,31.129]
[1742743172428,7.62108079,2013.0,2012.3,0.783]
[1742743172429,4.96919,2012.4,2012.3,0.38164236]
[1742743172750,4.96919,2012.4,2012.3,31.53264236]
[1742743172949,4.96919,2012.4,2012.3,31.151]
[1742743177455,4.9687,2012.6,2012.3,31.9762]
[1742743177873,4.9684,2012.8,2012.6,0.04968185]
[1742743178035,4.9684,2012.8,2012.7,4.903]
[1742743178230,4.9684,2012.8,2012.7,5.78028818]
[1742743179372,4.9684,2012.8,2012.7,4.903]
[1742743181459,4.9684,2012.8,2012.7,31.165]
[1742743189553,8.23802792,2012.8,2012.7,31.137]
[1742743191358,5.7214,2012.8,2012.7,31.137]
[1742743192290,5.7214,2012.8,2012.7,31.135]
[1742743192691,8.23802792,2012.8,2012.7,31.135]
[1742743194204,10.05540071,2012.8,2012.7,31.13]
[1742743194591,10.05540071,2012.8,2012.7,26.262]
[1742743196488,5.7214,2012.8,2012.7,26.262]
[1742743197905,8.23802792,2012.8,2012.7,26.262]
[1742743210040,5.7214,2012.8,2012.7,26.262]
[1742743210341,8.23802792,2012.8,2012.7,26.262]
[1742743214921,4.96845,2012.7,2012.6,31.086]
[1742743215218,7.48507792,2012.7,2012.6,31.086]
[1742743216517,4.96845,2012.7,2012.6,31.086]
[1742743218835,7.48507792,2012.7,2012.6,31.086]
[1742743219134,8.27197792,2012.7,2012.6,31.086]
[1742743222238,5.75535,2012.7,2012.6,31.086]
[1742743224554,4.96845,2012.7,2012.6,31.086]
[1742743228456,4.96831,2012.8,2012.7,0.778]
[1742743229343,4.96797,2012.9,2012.7,0.778]
[1742743230361,4.9682,2012.8,2012.7,0.778]
[1742743230546,4.96797,2012.9,2012.7,0.778]
[1742743231565,4.96797,2012.9,2012.8,0.22173659]
[1742743232226,4.96797,2012.9,2012.8,5.00873659]
[1742743232434,8.27149792,2012.9,2012.8,5.00973659]
[1742743233919,11.27149792,2012.9,2012.8,5.00973659]
[1742743244648,4.96845,2012.7,2012.6,26.268]
[1742743245166,7.48507792,2012.7,2012.6,26.46338276]
[1742743245370,10.35920171,2012.7,2012.6,26.46338276]
[1742743245963,13.35920171,2012.7,2012.6,26.46338276]
[1742743249368,13.35920171,2012.7,2012.4,4.766]
[1742743249369,4.96894,2012.5,2012.4,26.268]
[1742743249702,4.97017,2012.0,2011.9,0.8013]
[1742743249999,4.97017,2012.0,2011.9,31.8313]
[1742743252589,4.97017,2012.0,2011.9,32.0132262]
[1742743257204,3.7667,2012.7,2012.0,0.8013]
[1742743257364,4.96943,2012.3,2012.2,2.51662792]
[1742743257569,4.96943,2012.3,2012.2,4.757]
[1742743257893,4.96943,2012.3,2012.2,4.93979277]
[1742743261907,4.96939,2012.4,2012.2,5.74109277]
[1742743262116,4.96943,2012.3,2012.2,5.74109277]
[1742743262613,4.96943,2012.3,2012.2,32.01209277]
[1742743262970,4.96921,2012.4,2012.2,34.52872069]
[1742743263721,4.9687,2012.6,2012.2,38.69697069]
[1742743263722,4.9688,2012.6,2012.2,38.69697069]
[1742743264020,4.9688,2012.6,2012.4,0.756]
[1742743264520,4.9688,2012.6,2012.5,0.18088941]
[1742743264718,4.96795,2012.9,2012.5,0.18088941]
[1742743264925,4.96831,2012.8,2012.6,8.0763078]
[1742743265089,4.96795,2012.9,2012.6,8.0763078]
[1742743265294,4.96795,2012.9,2012.8,0.756]
[1742743265593,4.96777,2013.0,2012.8,0.93536427]
[1742743266325,4.96758,2013.1,2012.8,3.5016693]
[1742743266620,9.93516,2013.1,2012.9,0.65502041]
[1742743266918,4.96758,2013.1,2013.0,31.025]
[1742743267072,4.96758,2013.1,2013.0,31.20198374]
[1742743274932,5.75328,2013.1,2013.0,26.44698374]
[1742743275224,5.75328,2013.1,2013.0,31.18598374]
[1742743275392,7.57369679,2013.1,2013.0,31.18598374]
[1742743277916,7.57369679,2013.1,2013.0,31.18398374]
[1742743278648,7.57369679,2013.1,2013.0,26.44698374]
[1742743278817,7.57369679,2013.1,2013.0,31.18298374]
[1742743280631,10.09032471,2013.1,2013.0,26.44698374]
[1742743280845,10.09032471,2013.1,2013.0,31.17898374]
[1742743282047,10.09032471,2013.1,2013.0,26.44698374]
[1742743282341,10.09032471,2013.1,2013.0,31.17698374]
[1742743283643,10.09032471,2013.1,2013.0,26.44698374]
[1742743285354,4.96758,2013.1,2013.0,26.44698374]
[1742743290793,4.96758,2013.1,2013.0,27.22138374]
[1742743294620,4.96758,2013.1,2013.0,26.44698374]
[1742743298389,4.96727,2013.2,2013.0,26.44698374]
[1742743298796,4.96746,2013.1,2013.0,26.44698374]
[1742743308601,4.96746,2013.1,2013.0,30.44708374]
[1742743311620,4.96746,2013.1,2013.0,35.13908374]
[1742743311819,6.79114379,2013.1,2013.0,35.13908374]
[1742743312122,6.79114379,2013.1,2013.0,35.14008374]
[1742743315845,5.78577,2013.2,2013.0,31.13998374]
[1742743316505,4.96746,2013.1,2013.0,31.13998374]
[1742743320338,8.30258792,2013.1,2013.0,26.44698374]
[1742743321630,8.30258792,2013.1,2012.8,4.684]
[1742743321631,5.78645,2012.9,2012.8,4.684]
[1742743321810,7.48482792,2012.8,2012.7,30.946]
[1742743322612,10.08803471,2012.8,2012.7,26.261]
[1742743323630,10.08803471,2012.8,2012.7,26.42427747]
[1742743327024,4.9682,2012.8,2012.7,26.42427747]
[1742743329936,4.96772,2013.0,2012.8,0.8151]
[1742743330142,4.96746,2013.1,2012.8,0.8151]
[1742743330452,4.96787,2013.0,2012.9,0.16324692]
[1742743330669,4.96787,2013.0,2012.9,4.84624692]
[1742743331756,4.96746,2013.1,2012.9,4.84624692]
[1742743331940,4.96696,2013.3,2013.0,0.8151]
[1742743332135,4.96739,2013.2,2013.0,0.8151]
[1742743332454,4.96739,2013.2,2013.1,0.16195777]
[1742743332843,4.96702,2013.3,2013.1,0.2116289]
[1742743333044,4.96702,2013.3,2013.1,0.73293066]
[1742743333244,4.96721,2013.2,2013.1,0.73293066]
[1742743333420,4.96702,2013.3,2013.1,0.73293066]
[1742743335264,9.93418,2013.3,2013.1,0.73293066]
[1742743336264,4.96721,2013.2,2013.1,0.73293066]
[1742743336644,4.96721,2013.2,2013.1,4.85995777]
[1742743338446,4.96721,2013.2,2013.1,31.12095777]
[1742743339773,4.96702,2013.3,2013.1,31.12095777]
[1742743342071,4.96721,2013.2,2013.1,31.12095777]
[1742743342778,4.96721,2013.2,2013.1,31.11595777]
[1742743349149,4.96702,2013.3,2013.1,31.86625777]
[1742743349347,9.93419,2013.3,2013.1,31.86625777]
[1742743349574,4.96721,2013.2,2013.1,31.86625777]
[1742743351710,4.96721,2013.2,2013.1,31.11595777]
[1742743354821,5.73191,2013.2,2013.1,31.11595777]
[1742743358130,4.96721,2013.2,2013.1,31.11595777]
[1742743358421,4.96629,2013.6,2013.1,33.63258569]
[1742743358592,4.96629,2013.6,2013.3,0.8185]
[1742743358782,4.96648,2013.5,2013.3,0.8185]
[1742743358982,4.96648,2013.5,2013.4,0.15934263]
[1742743360317,4.96648,2013.5,2013.2,0.8185]
[1742743360520,4.96648,2013.5,2013.4,0.15909099]
[1742743360676,4.96672,2013.4,2013.3,0.15949417]
[1742743360880,4.96672,2013.4,2013.1,30.954]
[1742743361730,4.96699,2013.3,2013.1,30.954]
[1742743363119,9.93419,2013.3,2013.1,30.954]
[1742743363526,9.93408,2013.3,2013.1,30.954]
[1742743363683,4.96699,2013.3,2013.1,30.954]
[1742743363885,9.93409,2013.3,2013.2,4.685]
[1742743364386,4.96699,2013.3,2013.2,4.685]
[1742743365213,9.9336,2013.4,2013.2,4.685]
[1742743365393,4.96672,2013.4,2013.2,4.685]
[1742743365585,9.93363,2013.4,2013.2,4.685]
[1742743365787,4.96672,2013.4,2013.2,4.685]
[1742743365980,4.96647,2013.5,2013.2,4.685]
[1742743366186,4.96651,2013.5,2013.3,0.8185]
[1742743366683,4.96625,2013.6,2013.3,0.8185]
[1742743367120,4.96657,2013.5,2013.3,0.8185]
[1742743367419,4.96657,2013.5,2013.2,4.685]
[1742743367420,4.96672,2013.4,2013.2,4.685]
[1742743368730,4.96672,2013.4,2013.3,0.15943126]
[1742743369329,4.96672,2013.4,2013.3,4.85243126]
[1742743369534,4.96672,2013.4,2013.3,0.15943126]
[1742743369697,4.96672,2013.4,2013.3,4.693]
[1742743369897,4.96672,2013.4,2013.3,4.85243126]
[1742743370092,4.96672,2013.4,2013.3,0.15943126]
[1742743370292,4.96672,2013.4,2013.3,4.692]
[1742743370537,4.96672,2013.4,2013.3,4.85067626]
[1742743371889,4.96657,2013.5,2013.3,4.85067626]
[1742743372439,4.96657,2013.5,2013.4,30.946]
[1742743372741,4.96657,2013.5,2013.4,31.10427308]
[1742743374744,4.96657,2013.5,2013.4,26.41527308]
[1742743374910,4.96657,2013.5,2013.4,31.10127308]
[1742743375720,4.96623,2013.6,2013.4,31.90687308]
[1742743376234,4.96607,2013.7,2013.4,31.90687308]
[1742743378807,9.93226,2013.7,2013.4,31.90687308]
[1742743379131,0.7947,2014.0,2013.4,34.423501]
[1742743379446,4.96575,2013.8,2013.4,31.90687308]
[1742743379605,4.96619,2013.7,2013.4,31.90687308]
[1742743379800,4.96647,2013.5,2013.4,26.41527308]
[1742743380029,4.96623,2013.6,2013.4,31.10027308]
[1742743380233,9.93266,2013.6,2013.4,31.10027308]
[1742743380537,4.96623,2013.6,2013.4,31.10027308]
[1742743380899,4.96647,2013.5,2013.4,31.10027308]
[1742743381630,4.96647,2013.5,2013.4,26.41527308]
[1742743381801,4.96647,2013.5,2013.4,31.10327308]
[1742743382001,5.76117,2013.5,2013.4,31.10327308]
[1742743382905,4.96647,2013.5,2013.4,31.10327308]
[1742743384033,4.96647,2013.5,2013.4,26.41527308]
[1742743384236,7.3051,2013.5,2013.4,31.09927308]
[1742743386241,5.73807,2013.5,2013.4,31.09927308]
[1742743388140,5.73807,2013.5,2013.4,26.41527308]
[1742743388440,5.73807,2013.5,2013.4,31.09727308]
[1742743390249,5.73807,2013.5,2013.4,26.41527308]
[1742743393149,4.96647,2013.5,2013.4,26.41527308]
[1742743396253,9.30247071,2013.5,2013.4,26.41527308]
[1742743396419,10.08087071,2013.5,2013.4,26.41527308]
[1742743399068,7.56424279,2013.5,2013.4,26.41527308]
[1742743400163,5.74487,2013.5,2013.4,26.41527308]
[1742743400341,4.96647,2013.5,2013.4,26.41527308]
[1742743405269,4.96599,2013.7,2013.4,26.41527308]
[1742743405442,4.9662,2013.7,2013.5,0.807]
[1742743405768,4.96622,2013.6,2013.5,0.807]
[1742743410065,4.96647,2013.5,2013.4,26.257]
[1742743412471,4.96647,2013.5,2013.4,30.936]
[1742743413576,4.96647,2013.5,2013.4,31.09274485]
[1742743415372,4.96647,2013.5,2013.4,26.41374485]
[1742743415577,4.96647,2013.5,2013.4,31.09274485]
[1742743417975,4.96647,2013.5,2013.4,26.41374485]
[1742743418180,8.28469792,2013.5,2013.4,31.09274485]
[1742743421979,8.28469792,2013.5,2013.4,26.41374485]
[1742743422396,8.28469792,2013.5,2013.4,31.09274485]
[1742743424293,10.10639071,2013.5,2013.4,31.09274485]
[1742743427005,7.58976279,2013.5,2013.4,31.09274485]
[1742743430115,10.10639071,2013.5,2013.4,31.09274485]
[1742743430804,4.96647,2013.5,2013.4,31.09274485]
[1742743432714,5.78477,2013.5,2013.4,31.09274485]
[1742743434801,8.30139792,2013.5,2013.4,31.09274485]
[1742743439323,8.30139792,2013.5,2013.4,4.83574485]
[1742743439694,8.30139792,2013.5,2013.4,4.679]
[1742743439896,10.12476071,2013.5,2013.4,4.83691872]
[1742743440194,10.12476071,2013.5,2013.4,0.15791872]
[1742743440899,4.96672,2013.4,2013.3,4.679]
[1742743441337,4.96696,2013.3,2013.2,26.258]
[1742743441624,4.96696,2013.3,2013.2,30.937]
[1742743443637,4.96696,2013.3,2013.2,31.09572512]
[1742743448753,5.78477,2013.5,2013.3,0.7693]
[1742743448754,4.96649,2013.5,2013.3,0.7693]
[1742743449056,4.96649,2013.5,2013.4,0.15798164]
[1742743453045,4.96649,2013.5,2013.4,0.92728164]
[1742743453237,4.96642,2013.6,2013.4,0.92728164]
[1742743453545,4.96642,2013.6,2013.5,0.34813419]
[1742743453909,4.96642,2013.6,2013.5,0.50571269]
[1742743454316,4.96602,2013.7,2013.5,0.50571269]
[1742743454516,4.96602,2013.7,2013.6,5.4483]
[1742743455079,4.96602,2013.7,2013.6,5.6054754]
[1742743455239,4.96602,2013.7,2013.6,6.20083636]
[1742743457270,4.96602,2013.7,2013.6,4.8361754]
[1742743458271,4.96602,2013.7,2013.6,4.8351754]
[1742743458772,4.96602,2013.7,2013.6,0.1571754]
[1742743459762,4.96622,2013.6,2013.5,4.678]
[1742743473700,4.96622,2013.6,2013.5,4.83399049]
[1742743474777,6.74032271,2013.6,2013.5,4.83399049]
[1742743474981,8.24315939,2013.6,2013.5,4.83399049]
[1742743475603,6.46905668,2013.6,2013.5,4.83399049]
[1742743475803,4.96622,2013.6,2013.5,4.83399049]
[1742743477783,6.45131583,2013.6,2013.5,4.83399049]
[1742743481336,7.26631583,2013.6,2013.5,4.83399049]
[1742743484242,8.76915251,2013.6,2013.5,0.15599049]
[1742743484532,10.67597486,2013.6,2013.5,0.15599049]
[1742743488995,13.67597486,2013.6,2013.5,4.9e-07]
[1742743489197,20.36597486,2013.6,2013.5,4.9e-07]
[1742743489443,20.36597486,2013.6,2013.5,4.49e-06]
[1742743489740,4.96795,2012.9,2012.8,4.678]
[1742743489912,6.47078668,2012.9,2012.8,4.678]
[1742743490116,6.47078668,2012.9,2012.8,4.7900573]
[1742743490628,9.03537602,2012.9,2012.8,0.1120573]
[1742743490845,12.03537602,2012.9,2012.8,0.1120573]
[1742743492641,4.96845,2012.7,2012.6,26.257]
[1742743492851,7.47580569,2012.7,2012.6,26.257]
[1742743493012,4.96845,2012.7,2012.6,26.36986418]
[1742743503948,5.90010037,2012.7,2012.6,26.36986418]
[1742743504977,4.96845,2012.7,2012.6,0.11286418]
[1742743505343,4.96894,2012.5,2012.4,4.678]
[1742743507177,4.96894,2012.5,2012.1,0.8259]
[1742743507178,4.96952,2012.3,2012.1,0.8259]
[1742743507346,4.97044,2011.9,2011.6,0.8259]
[1742743507547,4.97044,2011.9,2011.8,0.8259]
[1742743507964,4.97044,2011.9,2011.8,5.5049]
[1742743508148,4.97019,2012.0,2011.8,5.5049]
[1742743512379,9.94056,2012.0,2011.8,5.5049]
[1742743513084,4.97019,2012.0,2011.8,5.5049]
[1742743513273,9.94047,2012.0,2011.8,5.5049]
[1742743513581,4.97019,2012.0,2011.8,5.5049]
[1742743514158,9.94056,2012.0,2011.8,5.5049]
[1742743514354,4.97042,2011.9,2011.8,5.5049]
[1742743515392,4.97019,2012.0,2011.8,5.5049]
[1742743516091,9.94048,2012.0,2011.8,5.5049]
[1742743517470,4.97042,2011.9,2011.8,0.8259]
[1742743517672,4.97042,2011.9,2011.8,4.679]
[1742743517987,4.97042,2011.9,2011.7,26.268]
[1742743517988,4.97067,2011.8,2011.7,29.268]
[1742743518193,4.97067,2011.8,2011.7,30.947]
[1742743518491,4.97067,2011.8,2011.7,31.06506088]
[1742743520178,4.97067,2011.8,2011.7,26.38606088]
[1742743520376,6.47554648,2011.8,2011.7,31.06506088]
[1742743521274,8.91556213,2011.8,2011.7,31.06606088]
[1742743521470,8.91556213,2011.8,2011.7,26.38606088]
[1742743522989,9.92032935,2011.8,2011.7,26.38606088]
[1742743524366,4.97042,2011.9,2011.7,26.38606088]
[1742743524574,4.97042,2011.9,2011.8,0.8288]
[1742743524881,4.97042,2011.9,2011.8,0.95104656]
[1742743526082,4.97042,2011.9,2011.8,0.12224656]
[1742743529188,4.97042,2011.9,2011.8,4.80224656]
[1742743529387,6.79228737,2011.9,2011.8,4.80224656]
[1742743530510,6.79228737,2011.9,2011.8,0.12224656]
[1742743530810,4.97067,2011.8,2011.7,26.268]
[1742743531009,7.4803137,2011.8,2011.7,26.268]
[1742743531177,7.4803137,2011.8,2011.7,26.39117195]
[1742743531379,9.48443981,2011.8,2011.7,26.39117195]
[1742743532109,10.28283981,2011.8,2011.7,0.12317195]
[1742743532313,4.97116,2011.6,2011.5,4.68]
[1742743532515,4.97116,2011.6,2011.5,4.80397972]
[1742743532685,7.4808037,2011.6,2011.5,0.12397972]
[1742743532876,9.50330268,2011.6,2011.5,4.80397972]
[1742743534412,9.50330268,2011.6,2011.5,0.12397972]
[1742743534591,10.30170268,2011.6,2011.5,0.12397972]
[1742743536317,6.99365898,2011.6,2011.5,0.12397972]
[1742743536616,4.97116,2011.6,2011.5,0.12397972]
[1742743537510,4.97116,2011.6,2010.7,1.77806505]
[1742743537511,0.7984,2011.4,2010.7,1.77806505]
[1742743537692,4.97259,2011.1,2010.8,0.89867367]
[1742743537890,9.94466,2011.2,2010.8,0.89776304]
[1742743538107,4.97231,2011.2,2010.8,0.89776304]
[1742743538419,4.97205,2011.3,2011.0,0.7909]
[1742743538727,4.97219,2011.2,2011.1,27.17946125]
[1742743540933,4.97219,2011.2,2011.1,26.38856125]
[1742743541223,4.97219,2011.2,2011.1,27.17946125]
[1742743543940,4.97219,2011.2,2011.1,31.86046125]
[1742743546342,4.97219,2011.2,2011.1,31.06956125]
[1742743546835,6.543622,2011.2,2011.1,26.38856125]
[1742743547003,6.543622,2011.2,2011.1,31.06956125]
[1742743547419,7.342022,2011.2,2011.1,26.38856125]
[1742743547816,6.543622,2011.2,2011.1,26.38856125]
[1742743548040,4.97219,2011.2,2011.1,26.38856125]
[1742743548250,4.97219,2011.2,2011.1,27.14906125]
[1742743556744,4.97186,2011.4,2011.1,27.14906125]
[1742743557054,4.97215,2011.2,2011.1,31.06956125]
[1742743563969,6.546937,2011.2,2011.1,31.06956125]
[1742743564475,7.351837,2011.2,2011.1,31.06956125]
[1742743571900,7.351837,2011.2,2011.1,26.38856125]
[1742743574803,7.351837,2011.2,2011.1,0.10656125]
[1742743575111,4.97205,2011.3,2011.1,0.10656125]
[1742743575401,4.97215,2011.2,2011.1,0.7638]
[1742743575721,5.35201681,2011.9,2011.1,0.7638]
[1742743575902,4.9716,2011.5,2011.4,0.7638]
[1742743576067,4.9716,2011.5,2011.4,5.4448]
[1742743578604,4.9716,2011.5,2011.4,5.54978668]
[1742743579612,4.9716,2011.5,2011.4,4.78598668]